bitfinex-derivatives/quotes_SOLF0:USTF0_20260226
["timestamp","ask_amount","ask_price","bid_price","bid_amount"]
[1772121709868,10.3882,86.634,86.548,5.19633677]
[1772121709869,3.50835472,86.674,86.593,3.57533227]
[1772121710071,10.3874,86.641,86.593,3.57533227]
[1772121710576,161.554,86.656,86.57,3.57533227]
[1772121710877,161.5353,86.666,86.57,3.227e-05]
[1772121710878,3.50835472,86.653,86.57,3.227e-05]
[1772121711077,0.08491838,86.625,86.57,3.227e-05]
[1772121711276,3.5932731,86.625,86.518,5.19633677]
[1772121711475,3.50835472,86.625,86.518,5.19633677]
[1772121711877,10.394,86.586,86.518,5.19633677]
[1772121712072,0.08175,86.58,86.518,5.19633677]
[1772121712776,10.3952,86.576,86.521,3.57533227]
[1772121713175,0.0872821,86.558,86.521,3.57533227]
[1772121713774,3.59563682,86.558,86.468,3.57533227]
[1772121713973,3.59563682,86.558,86.432,27.92449636]
[1772121713974,0.0872821,86.558,86.48,3.57533227]
[1772121714377,3.50835472,86.581,86.48,3.57533227]
[1772121714776,3.50835472,86.581,86.481,3.57533227]
[1772121714974,3.50835472,86.579,86.481,3.57533227]
[1772121715576,3.50835472,86.577,86.481,3.57533227]
[1772121715876,10.4025,86.515,86.451,3.57533227]
[1772121716078,3.50835472,86.548,86.451,3.57533227]
[1772121716672,3.50835472,86.549,86.451,3.57533227]
[1772121717182,3.50835472,86.527,86.451,3.57533227]
[1772121717682,0.08503703,86.509,86.451,3.57533227]
[1772121718081,3.50835472,86.527,86.451,3.57533227]
[1772121719080,10.4035,86.507,86.451,3.57533227]
[1772121719281,3.50835472,86.549,86.451,3.57533227]
[1772121720076,3.50835472,86.549,86.491,0.08066056]
[1772121720578,10.4005,86.532,86.473,3.57533227]
[1772121720973,3.50835472,86.569,86.511,0.08602079]
[1772121721482,3.50835472,86.569,86.495,3.57533227]
[1772121722285,10.4021,86.518,86.461,10.4089]
[1772121722486,3.50835472,86.548,86.411,20.8298]
[1772121722786,3.50835472,86.548,86.387,20.94337227]
[1772121722977,10.4047,86.497,86.441,10.4112]
[1772121723183,3.50835472,86.529,86.387,20.8357]
[1772121723383,0.08286345,86.492,86.387,20.8357]
[1772121723782,3.50835472,86.507,86.387,20.8357]
[1772121723982,10.4073,86.475,86.422,10.4136]
[1772121724280,10.4073,86.475,86.347,230.96]
[1772121724281,0.07837055,86.462,86.405,3.57533227]
[1772121724693,3.50835472,86.512,86.416,3.57533227]
[1772121725098,10.4063,86.484,86.427,10.413]
[1772121725284,3.50835472,86.512,86.428,3.57533227]
[1772121725488,3.50835472,86.512,86.408,3.57533227]
[1772121725891,10.4102,86.451,86.408,3.57533227]
[1772121726293,3.50835472,86.484,86.388,3.57533227]
[1772121726491,3.50835472,86.464,86.388,3.57533227]
[1772121727101,0.08396996,86.445,86.388,3.57533227]
[1772121727301,10.4111,86.443,86.389,13.99293227]
[1772121727505,3.50835472,86.464,86.389,3.57533227]
[1772121727699,3.50835472,86.464,86.349,3.57533227]
[1772121727909,10.4137,86.422,86.369,10.42]
[1772121728095,0.08873865,86.425,86.37,3.57533227]
[1772121728303,3.50835472,86.506,86.37,3.57533227]
[1772121728500,3.50835472,86.481,86.399,3.57533227]
[1772121729102,10.4105,86.449,86.399,3.57533227]
[1772121729302,3.50835472,86.481,86.334,162.1559]
[1772121729303,3.50835472,86.481,86.4,13.99163227]
[1772121729600,3.50835472,86.481,86.415,0.08055202]
[1772121729995,3.50835472,86.481,86.401,3.57064516]
[1772121730396,3.50835472,86.481,86.432,0.08215404]
[1772121730601,10.4104,86.449,86.432,0.08215404]
[1772121730800,10.4104,86.449,86.401,3.57064516]
[1772121731003,10.4082,86.467,86.412,3.57064516]
[1772121731204,3.66598478,86.502,86.412,3.57064516]
[1772121731610,3.66598478,86.502,86.431,3.57064516]
[1772121731907,3.66598478,86.502,86.388,3.57064516]
[1772121732303,0.08593511,86.475,86.388,3.57064516]
[1772121732510,10.4106,86.448,86.392,3.57064516]
[1772121732907,3.66598478,86.519,86.392,3.57064516]
[1772121733102,10.4074,86.474,86.411,13.98554516]
[1772121733412,3.66598478,86.492,86.412,3.57064516]
[1772121733905,3.66598478,86.482,86.366,3.57064516]
[1772121734301,10.4128,86.43,86.367,3.57064516]
[1772121734606,3.66598478,86.48,86.367,3.57064516]
[1772121735308,0.08138839,86.432,86.367,3.57064516]
[1772121735713,161.8563,86.494,86.368,3.57064516]
[1772121735714,3.66598478,86.439,86.368,3.57064516]
[1772121736010,3.66598478,86.439,86.358,5.20268235]
[1772121736206,0.08505559,86.404,86.359,3.57064516]
[1772121736513,3.66598478,86.439,86.359,3.57064516]
[1772121736705,3.66598478,86.439,86.39,0.08906936]
[1772121737106,3.66598478,86.439,86.319,3.57064516]
[1772121737411,3.66598478,86.415,86.331,3.57064516]
[1772121738213,10.4166,86.398,86.332,10.4244]
[1772121738513,0.07417363,86.382,86.31,3.57064516]
[1772121738713,3.74015841,86.382,86.31,3.57064516]
[1772121738911,3.66598478,86.382,86.31,3.57064516]
[1772121739106,3.66598478,86.382,86.289,3.57064516]
[1772121739312,0.0879155,86.355,86.289,3.57064516]
[1772121739713,3.66598478,86.382,86.293,3.57064516]
[1772121740107,10.419,86.378,86.31,3.57064516]
[1772121740518,3.66598478,86.403,86.31,3.57064516]
[1772121740818,3.66598478,86.376,86.266,3.57064516]
[1772121741220,10.4211,86.361,86.29,10.4295]
[1772121741420,10.4211,86.361,86.286,3.57064516]
[1772121741808,10.4211,86.361,86.315,0.07965888]
[1772121742112,3.66598478,86.376,86.315,0.07965888]
[1772121742420,3.66598478,86.346,86.271,3.57064516]
[1772121742811,10.4241,86.336,86.272,10.4317]
[1772121743017,3.66598478,86.367,86.273,3.57064516]
[1772121743322,10.4179,86.387,86.314,3.57064516]
[1772121743515,3.66598478,86.389,86.314,3.57064516]
[1772121744021,10.4178,86.388,86.314,3.57064516]
[1772121744216,3.66598478,86.389,86.343,0.07683531]
[1772121744622,10.4188,86.38,86.343,0.07683531]
[1772121744920,3.66598478,86.389,86.343,0.07683531]
[1772121745321,3.66598478,86.389,86.278,5.20659549]
[1772121745322,3.66598478,86.358,86.294,10.429]
[1772121745518,3.66598478,86.358,86.293,3.57064516]
[1772121745823,3.66598478,86.358,86.233,299.0]
[1772121745824,3.66598478,86.358,86.282,3.57064516]
[1772121746022,3.66598478,86.379,86.282,3.57064516]
[1772121746322,10.4214,86.358,86.296,13.99944516]
[1772121747114,10.4226,86.348,86.27,3.57064516]
[1772121747313,3.66598478,86.378,86.27,3.57064516]
[1772121747517,3.66598478,86.378,86.272,3.57064516]
[1772121747717,3.66598478,86.378,86.311,10.427]
[1772121748116,3.66598478,86.378,86.311,13.99764516]
[1772121748322,10.4191,86.377,86.321,10.4258]
[1772121748918,3.66598478,86.401,86.33,10.4247]
[1772121749224,3.66598478,86.401,86.34,0.07448388]
[1772121749726,3.66598478,86.401,86.332,3.57064516]
[1772121749927,10.4151,86.41,86.332,3.57064516]
[1772121750125,3.66598478,86.421,86.318,5.21029843]
[1772121750320,0.08388304,86.375,86.319,3.57064516]
[1772121750628,0.08388304,86.375,86.33,10.4247]
[1772121750826,3.66598478,86.399,86.319,3.57064516]
[1772121751724,3.66598478,86.425,86.338,3.57064516]
[1772121752125,3.66598478,86.425,86.35,0.08674087]
[1772121752626,20.8138,86.479,86.351,3.57064516]
[1772121752826,3.66598478,86.478,86.351,3.57064516]
[1772121753225,3.66598478,86.478,86.379,0.07575555]
[1772121753425,3.66598478,86.478,86.379,3.64640071]
[1772121753630,3.66598478,86.478,86.379,3.57064516]
[1772121753932,3.66598478,86.46,86.381,10.4185]
[1772121754132,3.66598478,86.46,86.379,3.57064516]
[1772121754329,0.08584794,86.437,86.379,3.57064516]
[1772121754526,3.66598478,86.46,86.418,10.4141]
[1772121754732,3.66598478,86.483,86.4,3.57064516]
[1772121755432,3.66598478,86.449,86.367,3.57064516]
[1772121756534,3.66598478,86.436,86.376,10.4192]
[1772121757236,3.66598478,86.491,86.369,3.57064516]
[1772121757836,0.07344789,86.415,86.369,3.57064516]
[1772121758038,0.07344789,86.415,86.319,3.78103099]
[1772121758341,10.4108,86.446,86.367,3.78103099]
[1772121758529,3.68476541,86.451,86.367,3.78103099]
[1772121758938,10.4103,86.45,86.389,10.4176]
[1772121759139,0.07296856,86.418,86.389,10.4176]
[1772121759336,0.07296856,86.418,86.379,10.4188]
[1772121759734,0.07296856,86.418,86.367,3.78103099]
[1772121759932,0.07296856,86.418,86.376,10.4191]
[1772121760335,0.07296856,86.418,86.367,3.78103099]
[1772121761330,0.07296856,86.418,86.366,10.4204]
[1772121761528,0.07296856,86.418,86.347,3.51408444]
[1772121761931,3.86002731,86.432,86.347,3.51408444]
[1772121762129,3.86002731,86.432,86.375,10.4193]
[1772121762536,3.86002731,86.432,86.366,3.51408444]
[1772121763542,3.86002731,86.432,86.384,10.4181]
[1772121763739,3.86002731,86.432,86.366,3.51408444]
[1772121764036,3.86002731,86.487,86.366,3.51408444]
[1772121764236,10.4109,86.445,86.384,10.4182]
[1772121764539,3.86002731,86.453,86.366,3.51408444]
[1772121764739,3.86002731,86.427,86.366,3.51408444]
[1772121765130,0.07553113,86.418,86.366,3.51408444]
[1772121765732,10.4133,86.426,86.366,3.51408444]
[1772121766142,3.86002731,86.427,86.366,3.51408444]
[1772121766341,10.4141,86.419,86.358,10.4213]
[1772121766840,3.86002731,86.418,86.346,3.51408444]
[1772121767839,3.86002731,86.402,86.319,3.51408444]
[1772121768635,3.86002731,86.383,86.271,3.51408444]
[1772121769143,3.86002731,86.356,86.271,3.51408444]
[1772121769838,10.4224,86.35,86.293,10.4292]
[1772121770035,3.86002731,86.356,86.271,3.51408444]
[1772121770538,3.86002731,86.346,86.271,3.51408444]
[1772121771140,10.4231,86.344,86.271,3.51408444]
[1772121771335,0.07306468,86.317,86.271,3.51408444]
[1772121771846,34.64,86.394,86.248,39.84697303]
[1772121771847,3.86002731,86.368,86.299,0.07562973]
[1772121772146,3.86002731,86.368,86.3,3.51408444]
[1772121772349,10.4192,86.376,86.315,10.4265]
[1772121772549,3.86002731,86.375,86.3,3.51408444]
[1772121773150,0.08535732,86.346,86.298,10.4286]
[1772121773639,0.08535732,86.346,86.246,20.8697]
[1772121773640,3.86002731,86.375,86.279,3.51408444]
[1772121773845,3.86002731,86.375,86.305,10.4277]
[1772121774044,8.46493858,86.413,86.279,3.51408444]
[1772121774246,3.86002731,86.395,86.323,3.51408444]
[1772121774448,3.86002731,86.415,86.323,3.51408444]
[1772121774942,3.86002731,86.415,86.343,10.4231]
[1772121775450,3.86002731,86.415,86.323,3.51408444]
[1772121776142,3.86002731,86.415,86.36,0.08429768]
[1772121776344,3.86002731,86.415,86.322,3.51408444]
[1772121776650,0.08075859,86.378,86.322,3.51408444]
[1772121777247,3.86002731,86.411,86.322,3.51408444]
[1772121777447,10.4182,86.385,86.331,10.4246]
[1772121777850,3.86002731,86.412,86.322,3.51408444]
[1772121778353,3.86002731,86.412,86.354,10.4218]
[1772121778950,3.86002731,86.412,86.363,10.4207]
[1772121779549,3.86002731,86.412,86.368,0.07569212]
[1772121780154,3.86002731,86.412,86.322,3.51408444]
[1772121780451,3.86002731,86.398,86.322,3.51408444]
[1772121781047,10.4158,86.405,86.322,3.51408444]
[1772121781247,3.86002731,86.421,86.322,3.51408444]
[1772121781448,3.86002731,86.441,86.327,3.51408444]
[1772121781649,3.86002731,86.469,86.376,3.51408444]
[1772121782046,10.4088,86.463,86.399,10.4163]
[1772121782448,3.86002731,86.462,86.399,3.51408444]
[1772121782653,3.86002731,86.502,86.419,3.51408444]
[1772121783045,3.86002731,86.502,86.379,3.51408444]
[1772121783347,5.20855093,86.528,86.379,3.51408444]
[1772121783348,3.86002731,86.469,86.379,3.51408444]
[1772121784058,3.86002731,86.469,86.415,0.08250896]
[1772121784755,3.86002731,86.469,86.339,3.51408444]
[1772121785052,3.86002731,86.469,86.349,3.51408444]
[1772121785244,3.86002731,86.469,86.376,3.51408444]
[1772121785449,3.86002731,86.491,86.393,3.51408444]
[1772121785850,3.86002731,86.491,86.397,3.51408444]
[1772121786345,3.86002731,86.491,86.433,0.08200311]
[1772121786746,3.86002731,86.491,86.399,3.51408444]
[1772121787157,3.86002731,86.491,86.435,0.07750411]
[1772121787652,3.86002731,86.491,86.399,3.51408444]
[1772121788062,3.86002731,86.491,86.436,0.07431598]
[1772121788452,3.86002731,86.478,86.436,0.07431598]
[1772121788753,3.86002731,86.478,86.399,3.51408444]
[1772121789156,0.08797551,86.447,86.4,10.4163]
[1772121789455,0.08797551,86.447,86.399,3.51408444]
[1772121789951,3.73811451,86.502,86.403,162.0262]
[1772121790145,3.73811451,86.502,86.406,3.58157493]
[1772121790349,3.73811451,86.569,86.416,3.58157493]
[1772121790548,3.73811451,86.541,86.457,3.58157493]
[1772121791351,3.73811451,86.536,86.457,3.58157493]
[1772121791659,3.73811451,86.536,86.435,3.58157493]
[1772121791859,3.73811451,86.511,86.438,10.4117]
[1772121792049,3.73811451,86.511,86.435,3.58157493]
[1772121792657,3.73811451,86.511,86.405,3.58157493]
[1772121792857,0.078096,86.482,86.405,3.58157493]
[1772121793056,0.078096,86.482,86.426,10.4132]
[1772121793259,3.73811451,86.511,86.426,10.4132]
[1772121793660,0.07994829,86.463,86.416,10.4144]
[1772121793960,0.07994829,86.463,86.405,3.58157493]
[1772121794160,3.73811451,86.5,86.405,3.58157493]
[1772121794362,3.73811451,86.489,86.405,3.58157493]
[1772121794550,3.73811451,86.489,86.38,3.58157493]
[1772121794754,3.73811451,86.489,86.329,20.8496]
[1772121794755,0.07860821,86.443,86.33,3.58157493]
[1772121795054,0.07860821,86.443,86.353,3.58157493]
[1772121795362,3.73811451,86.489,86.353,3.58157493]
[1772121795552,0.08013035,86.407,86.353,3.58157493]
[1772121795755,0.08013035,86.407,86.367,10.4202]
[1772121795959,3.73811451,86.427,86.353,3.58157493]
[1772121796353,0.07843835,86.389,86.353,3.58157493]
[1772121797564,0.07843835,86.389,86.328,8.78560383]
[1772121797759,0.07843835,86.389,86.329,3.58157493]
[1772121798061,3.73811451,86.428,86.364,10.4206]
[1772121798459,3.73811451,86.428,86.336,3.58157493]
[1772121799768,3.73811451,86.428,86.373,0.07665819]
[1772121800267,3.73811451,86.409,86.339,10.4236]
[1772121800662,10.416,86.403,86.336,3.58157493]
[1772121800860,3.73811451,86.409,86.336,3.58157493]
[1772121801264,3.73811451,86.43,86.368,10.4201]
[1772121801664,3.73811451,86.43,86.355,3.58157493]
[1772121801965,0.07674714,86.401,86.355,3.58157493]
[1772121802161,3.73811451,86.419,86.355,3.58157493]
[1772121802556,3.73811451,86.419,86.36,10.4211]
[1772121802756,3.73811451,86.419,86.355,3.58157493]
[1772121803469,3.73811451,86.419,86.329,3.58157493]
[1772121803865,10.4165,86.399,86.331,10.4246]
[1772121804066,10.4165,86.399,86.365,0.07873447]
[1772121804457,3.73811451,86.381,86.321,10.4258]
[1772121804661,3.73811451,86.381,86.309,3.58157493]
[1772121805057,3.73811451,86.381,86.319,10.426]
[1772121805261,3.73811451,86.381,86.309,3.58157493]
[1772121805869,3.73811451,86.381,86.299,10.4285]
[1772121806062,3.73811451,86.381,86.288,3.58157493]
[1772121806262,10.4202,86.368,86.307,10.4275]
[1772121806460,0.07823474,86.343,86.307,10.4275]
[1772121807262,3.73811451,86.377,86.288,3.58157493]
[1772121808459,10.4203,86.368,86.311,10.4269]
[1772121808661,3.73811451,86.377,86.324,0.08701092]
[1772121809063,3.73811451,86.377,86.307,3.58157493]
[1772121809467,3.73811451,86.377,86.333,0.0870394]
[1772121809970,14.15721451,86.377,86.333,0.0870394]
[1772121810162,3.73811451,86.443,86.334,3.58157493]
[1772121810370,3.73811451,86.429,86.362,10.4209]
[1772121810766,3.73811451,86.429,86.353,3.58157493]
[1772121810967,3.73811451,86.428,86.387,0.08499281]
[1772121811368,3.73811451,86.428,86.353,3.58157493]
[1772121811569,10.4143,86.417,86.358,10.4214]
[1772121811764,10.4143,86.417,86.382,0.0870168]
[1772121812067,3.73811451,86.428,86.382,0.0870168]
[1772121814170,34.64,86.466,86.382,0.0870168]
[1772121814171,3.73811451,86.418,86.382,0.0870168]
[1772121814563,3.73811451,86.418,86.353,3.58157493]
[1772121815066,3.73811451,86.418,86.377,0.08029714]
[1772121816464,3.73811451,86.418,86.278,162.2604]
[1772121816465,3.73811451,86.397,86.308,3.58157493]
[1772121817271,10.69076379,86.466,86.331,3.58157493]
[1772121817272,3.73811451,86.437,86.331,3.58157493]
[1772121817876,0.07497516,86.393,86.331,3.58157493]
[1772121818273,3.73555715,86.417,86.344,10.423]
[1772121818574,3.73555715,86.417,86.331,3.58157493]
[1772121818776,3.73555715,86.417,86.36,10.4211]
[1772121818972,3.73555715,86.417,86.351,3.84697811]
[1772121818973,3.73555715,86.461,86.351,3.84697811]
[1772121819382,3.73555715,86.461,86.382,3.84697811]
[1772121819781,3.62831608,86.43,86.362,3.68197248]
[1772121819973,3.62831608,86.43,86.31,20.8544]
[1772121820173,3.62831608,86.43,86.311,3.68197248]
[1772121820374,3.62831608,86.43,86.374,0.07296036]
[1772121820784,10.4135,86.423,86.374,0.07296036]
[1772121820981,10.4135,86.423,86.359,14.10317248]
[1772121821382,10.4145,86.416,86.39,0.0767285]
[1772121821588,0.07563417,86.4,86.359,14.10317248]
[1772121821881,0.07563417,86.4,86.366,10.4203]
[1772121822086,3.62831608,86.488,86.367,3.68197248]
[1772121822280,3.62831608,86.48,86.348,3.68197248]
[1772121822489,3.62831608,86.439,86.347,3.68197248]
[1772121823483,3.62831608,86.439,86.384,0.08693091]
[1772121823888,10.4136,86.423,86.347,3.68197248]
[1772121824084,3.62831608,86.439,86.347,3.68197248]
[1772121824281,3.62831608,86.439,86.403,0.07369765]
[1772121824488,3.62831608,86.439,86.347,3.68197248]
[1772121825482,3.62831608,86.417,86.347,3.68197248]
[1772121825886,0.07372749,86.402,86.347,3.68197248]
[1772121826084,3.62831608,86.437,86.347,3.68197248]
[1772121826281,3.62831608,86.437,86.373,0.08280891]
[1772121826790,3.62831608,86.437,86.367,3.68197248]
[1772121827690,3.62831608,86.437,86.393,0.08465077]
[1772121827892,10.4128,86.43,86.393,0.08465077]
[1772121828296,3.62831608,86.437,86.393,0.08465077]
[1772121828591,8.39383414,86.471,86.393,0.08465077]
[1772121828592,3.62831608,86.462,86.393,0.08465077]
[1772121828894,3.62831608,86.462,86.394,3.68197248]
[1772121829490,3.62831608,86.462,86.419,0.07769671]
[1772121829891,3.62831608,86.462,86.371,3.68197248]
[1772121830395,10.4136,86.423,86.373,10.4195]
[1772121830596,3.62831608,86.467,86.371,3.68197248]
[1772121830892,3.62831608,86.43,86.364,10.4206]
[1772121831092,3.62831608,86.43,86.35,3.68197248]
[1772121831493,3.62831608,86.427,86.35,3.68197248]
[1772121831692,10.4145,86.416,86.363,10.4207]
[1772121832394,3.62831608,86.446,86.35,3.68197248]
[1772121832991,3.62831608,86.425,86.389,0.0738632]
[1772121833195,3.62831608,86.425,86.35,3.68197248]
[1772121833695,3.62831608,86.407,86.33,3.68197248]
[1772121834696,10.4193,86.376,86.32,10.4259]
[1772121834996,10.4193,86.376,86.29,3.68197248]
[1772121834997,3.62831608,86.407,86.29,3.68197248]
[1772121835788,10.4211,86.36,86.301,10.4282]
[1772121836397,0.07610347,86.339,86.29,3.68197248]
[1772121836594,0.07610347,86.339,86.3,10.4284]
[1772121836897,0.07610347,86.339,86.29,3.68197248]
[1772121837399,3.62831608,86.376,86.29,3.68197248]
[1772121837697,3.62831608,86.376,86.306,0.08033055]
[1772121837990,3.62831608,86.376,86.306,3.76230303]
[1772121838198,3.62831608,86.416,86.306,3.68197248]
[1772121838791,10.4172,86.393,86.352,0.08792983]
[1772121838987,3.62831608,86.416,86.352,0.08792983]
[1772121839388,3.62831608,86.416,86.33,3.68197248]
[1772121839802,20.8265,86.426,86.33,3.68197248]
[1772121839803,10.4181,86.385,86.33,3.68197248]
[1772121839996,0.07666881,86.382,86.33,3.68197248]
[1772121840494,3.62831608,86.394,86.33,3.68197248]
[1772121840792,3.62831608,86.394,86.311,3.68197248]
[1772121841093,10.4204,86.366,86.311,3.68197248]
[1772121841294,0.08108202,86.371,86.311,3.68197248]
[1772121841594,3.62831608,86.375,86.311,3.68197248]
[1772121841894,10.4173,86.392,86.333,10.4243]
[1772121842201,3.62831608,86.394,86.333,10.4243]
[1772121842496,3.62831608,86.394,86.33,3.68197248]
[1772121842497,3.62831608,86.394,86.354,0.07303966]
[1772121843287,3.62831608,86.429,86.354,0.07303966]
[1772121843691,10.4147,86.414,86.349,3.68197248]
[1772121843896,3.62831608,86.429,86.349,3.68197248]
[1772121844100,10.4175,86.39,86.319,3.68197248]
[1772121844300,10.49728075,86.39,86.319,3.68197248]
[1772121844793,3.62831608,86.383,86.319,3.68197248]
[1772121845598,0.08093161,86.36,86.327,10.425]
[1772121846398,0.08093161,86.36,86.334,10.4242]
[1772121846595,3.62831608,86.404,86.319,3.68197248]
[1772121846793,3.62831608,86.404,86.335,0.07412523]
[1772121846996,10.416,86.403,86.351,10.4221]
[1772121847195,3.62831608,86.404,86.336,3.68197248]
[1772121848001,3.62831608,86.427,86.362,3.68197248]
[1772121848902,3.62831608,86.427,86.386,0.08563777]
[1772121849095,3.62831608,86.446,86.386,0.08563777]
[1772121849497,3.62831608,86.446,86.386,3.76761025]
[1772121849802,3.62831608,86.446,86.386,3.68197248]
[1772121850003,3.62831608,86.446,86.407,0.08852092]
[1772121850198,10.411,86.444,86.407,0.08852092]
[1772121850399,3.62831608,86.446,86.407,0.08852092]
[1772121851499,3.89631069,86.467,86.407,0.08852092]
[1772121852004,10.409,86.461,86.407,10.4154]
[1772121852497,3.89631069,86.461,86.382,3.68176064]
[1772121852701,0.0768596,86.443,86.382,3.68176064]
[1772121852899,0.0768596,86.443,86.407,10.4154]
[1772121853199,3.89631069,86.461,86.382,3.68176064]
[1772121853605,3.89631069,86.461,86.359,3.68176064]
[1772121853801,0.08594456,86.43,86.359,3.68176064]
[1772121854203,0.08594456,86.43,86.389,10.4176]
[1772121854504,10.4122,86.434,86.389,10.4176]
[1772121854700,0.08444852,86.418,86.359,3.68176064]
[1772121855401,3.89631069,86.442,86.359,3.68176064]
[1772121855707,0.08274658,86.397,86.362,10.4208]
[1772121856301,14.31141069,86.411,86.362,10.4208]
[1772121856600,14.31141069,86.411,86.34,3.68176064]
[1772121856601,0.07969953,86.388,86.34,3.68176064]
[1772121857809,0.07969953,86.388,86.309,3.68176064]
[1772121858010,3.97601022,86.388,86.309,3.68176064]
[1772121858402,3.89631069,86.388,86.317,3.68176064]
[1772121858712,0.08656202,86.357,86.317,3.68176064]
[1772121859504,3.89631069,86.388,86.317,3.68176064]
[1772121859907,3.89631069,86.388,86.289,3.68176064]
[1772121860804,3.89631069,86.388,86.305,3.68176064]
[1772121861007,3.89631069,86.388,86.33,0.08498014]
[1772121861411,3.89631069,86.388,86.331,3.68176064]
[1772121861805,10.4182,86.385,86.331,3.68176064]
[1772121861999,3.89631069,86.388,86.351,0.08018248]
[1772121862499,10.4181,86.386,86.351,0.08018248]
[1772121862699,3.89631069,86.388,86.351,0.08018248]
[1772121863304,3.89631069,86.408,86.351,0.08018248]
[1772121863709,3.89631069,86.44,86.352,3.68176064]
[1772121864611,3.89631069,86.44,86.332,3.68176064]
[1772121864808,3.89631069,86.438,86.332,3.68176064]
[1772121865003,3.89631069,86.407,86.351,10.4221]
[1772121865708,3.89631069,86.407,86.359,10.4212]
[1772121865914,3.89631069,86.426,86.351,3.68176064]
[1772121866610,0.07823045,86.397,86.351,3.68176064]
[1772121867006,0.07823045,86.397,86.358,10.4214]
[1772121867612,0.07823045,86.397,86.351,3.68176064]
[1772121867808,3.89631069,86.426,86.351,3.68176064]
[1772121868112,3.89631069,86.426,86.369,0.08500992]
[1772121868412,10.4134,86.425,86.37,10.4199]
[1772121868607,3.89631069,86.462,86.371,3.68176064]
[1772121869212,3.89631069,86.462,86.408,0.07946509]
[1772121869707,3.89631069,86.462,86.389,3.68176064]
[1772121869906,10.4128,86.43,86.352,3.68176064]
[1772121870109,3.89631069,86.441,86.352,3.68176064]
[1772121871415,3.89631069,86.441,86.37,3.68176064]
[1772121871814,3.89631069,86.483,86.37,3.68176064]
[1772121872013,10.4103,86.45,86.39,3.68176064]
[1772121872313,3.89631069,86.46,86.39,3.68176064]
[1772121872712,3.89631069,86.442,86.349,3.68176064]
[1772121873115,3.89631069,86.442,86.375,3.68176064]
[1772121873311,3.89631069,86.442,86.349,3.68176064]
[1772121874416,3.89631069,86.415,86.329,3.68176064]
[1772121875113,10.4147,86.414,86.344,3.68176064]
[1772121875314,3.89631069,86.415,86.344,3.68176064]
[1772121875815,3.89631069,86.415,86.37,0.07902523]
[1772121876313,3.89631069,86.366,86.299,3.68176064]
[1772121876611,3.89631069,86.412,86.299,3.68176064]
[1772121876817,3.89631069,86.412,86.288,5.20675183]
[1772121876818,10.4164,86.4,86.332,3.68176064]
[1772121877013,3.89631069,86.412,86.332,3.68176064]
[1772121877414,3.89631069,86.392,86.332,3.68176064]
[1772121877611,0.07602038,86.381,86.332,3.68176064]
[1772121878013,0.07602038,86.381,86.336,10.424]
[1772121878216,0.07602038,86.381,86.332,3.68176064]
[1772121878717,0.07602038,86.381,86.354,10.4218]
[1772121878912,10.4149,86.412,86.355,3.61220696]
[1772121879219,3.76064211,86.428,86.348,10.50644614]
[1772121879422,3.76064211,86.428,86.348,10.4225]
[1772121879821,3.76064211,86.428,86.336,3.61220696]
[1772121880115,3.7809987,86.402,86.313,3.84806101]
[1772121880415,3.7809987,86.439,86.351,3.84806101]
[1772121881013,3.7809987,86.439,86.384,10.4182]
[1772121881215,3.7809987,86.439,86.376,3.84806101]
[1772121882122,0.07999162,86.416,86.376,3.84806101]
[1772121882718,0.07999162,86.416,86.384,3.84806101]
[1772121883018,3.7809987,86.458,86.384,3.84806101]
[1772121883615,3.7809987,86.458,86.349,3.84806101]
[1772121884119,3.7809987,86.458,86.395,0.07964327]
[1772121884627,3.7809987,86.458,86.373,3.84806101]
[1772121884923,3.7809987,86.458,86.407,0.0819117]
[1772121885623,3.7809987,86.458,86.407,10.4972117]
[1772121885929,3.7809987,86.458,86.407,0.0819117]
[1772121887126,3.7809987,86.489,86.407,0.0819117]
[1772121887527,3.7809987,86.489,86.391,3.84806101]
[1772121887825,10.4101,86.452,86.4,10.4163]
[1772121888122,3.7809987,86.461,86.363,20.8416]
[1772121888321,3.7809987,86.461,86.364,3.84806101]
[1772121888623,3.7809987,86.461,86.358,34.64]
[1772121888624,3.7809987,86.461,86.39,3.84806101]
[1772121889322,0.07355813,86.434,86.39,3.84806101]
[1772121889728,8.46891091,86.499,86.39,3.84806101]
[1772121889924,3.7809987,86.489,86.399,3.84806101]
[1772121890627,3.7809987,86.47,86.374,3.84806101]
[1772121891027,10.4122,86.435,86.376,10.4191]
[1772121891228,10.4122,86.435,86.413,0.07472823]
[1772121892628,3.7809987,86.445,86.413,0.07472823]
[1772121893429,10.4092,86.459,86.413,0.07472823]
[1772121893623,3.7809987,86.464,86.413,0.07472823]
[1772121894322,10.4103,86.45,86.413,0.07472823]
[1772121894723,3.7809987,86.464,86.413,0.07472823]
[1772121894931,10.4113,86.442,86.413,0.07472823]
[1772121895523,8.46891091,86.485,86.384,10.4182]
[1772121895524,10.4123,86.434,86.384,10.4182]